Workbook

Sheet 욕조 리모델링 비용
B1: 욕실 리모델링 비용 워크시트
B2: 참고: 표의 차액 열은 실제 금액이 예상 금액을 초과했는지 보여줍니다. 빨간색 숫자는 초과 금액(음수)을 나타내며 검은색 숫자는 여유 금액(양수)을 나타냅니다.
E3: 항목별 비용(₩) | H3: 총 비용(₩)
B4: 영역 | C4: 항목 | D4: 수량 | E4: 예상 | F4: 실제 | G4: 차액 | H4: 예상 | I4: 실제 | J4: 차액
B5: 욕조/샤워기 | C5: 욕조, 무쇠, 5', 표준 | D5: 1 | E5: ₩250.00 | F5: =RANDBETWEEN(E5+2,E5+20) -> ₩259.00 | G5: =IFERROR(비용[[#This Row],[예상]]-비용[[#This Row],[실제]], "") -> ₩9.00 | H5: =IFERROR(비용[[#This Row],[수량]]*비용[[#This Row],[예상]], "") -> ₩250.00 | I5: =IFERROR(비용[[#This Row],[수량]]*비용[[#This Row],[실제]], "") -> ₩259.00 | J5: =IFERROR(비용[[#This Row],[예상 ]]-비용[[#This Row],[실제 ]], "") -> (₩9.00)
B6: 욕조/샤워기 | C6: 샤워 부스 문, 여닫이, 표준 | D6: 1 | E6: ₩200.00 | F6: ₩214.00 | G6: =IFERROR(비용[[#This Row],[예상]]-비용[[#This Row],[실제]], "") -> ₩14.00 | H6: =IFERROR(비용[[#This Row],[수량]]*비용[[#This Row],[예상]], "") -> ₩200.00 | I6: =IFERROR(비용[[#This Row],[수량]]*비용[[#This Row],[실제]], "") -> ₩214.00 | J6: =IFERROR(비용[[#This Row],[예상 ]]-비용[[#This Row],[실제 ]], "") -> (₩14.00)
B7: 욕조/샤워기 | C7: 샤워기 헤드, 표준 | D7: 1 | E7: ₩50.00 | F7: ₩52.00 | G7: =IFERROR(비용[[#This Row],[예상]]-비용[[#This Row],[실제]], "") -> ₩2.00 | H7: =IFERROR(비용[[#This Row],[수량]]*비용[[#This Row],[예상]], "") -> ₩50.00 | I7: =IFERROR(비용[[#This Row],[수량]]*비용[[#This Row],[실제]], "") -> ₩52.00 | J7: =IFERROR(비용[[#This Row],[예상 ]]-비용[[#This Row],[실제 ]], "") -> (₩2.00)
B8: 욕조/샤워기 | C8: 욕조 벽면, 표준 | D8: 1 | E8: ₩200.00 | F8: ₩216.00 | G8: =IFERROR(비용[[#This Row],[예상]]-비용[[#This Row],[실제]], "") -> ₩16.00 | H8: =IFERROR(비용[[#This Row],[수량]]*비용[[#This Row],[예상]], "") -> ₩200.00 | I8: =IFERROR(비용[[#This Row],[수량]]*비용[[#This Row],[실제]], "") -> ₩216.00 | J8: =IFERROR(비용[[#This Row],[예상 ]]-비용[[#This Row],[실제 ]], "") -> (₩16.00)
B9: 캐비닛 | C9: 약장 24'', 디럭스 | D9: 1 | E9: ₩200.00 | F9: ₩216.00 | G9: =IFERROR(비용[[#This Row],[예상]]-비용[[#This Row],[실제]], "") -> ₩16.00 | H9: =IFERROR(비용[[#This Row],[수량]]*비용[[#This Row],[예상]], "") -> ₩200.00 | I9: =IFERROR(비용[[#This Row],[수량]]*비용[[#This Row],[실제]], "") -> ₩216.00 | J9: =IFERROR(비용[[#This Row],[예상 ]]-비용[[#This Row],[실제 ]], "") -> (₩16.00)
B10: 캐비닛 | C10: 욕실 캐비닛 30'', 표준 | D10: 2 | E10: ₩100.00 | F10: ₩104.00 | G10: =IFERROR(비용[[#This Row],[예상]]-비용[[#This Row],[실제]], "") -> ₩4.00 | H10: =IFERROR(비용[[#This Row],[수량]]*비용[[#This Row],[예상]], "") -> ₩200.00 | I10: =IFERROR(비용[[#This Row],[수량]]*비용[[#This Row],[실제]], "") -> ₩208.00 | J10: =IFERROR(비용[[#This Row],[예상 ]]-비용[[#This Row],[실제 ]], "") -> (₩8.00)
B11: 조리대 | C11: 세라믹 타일, 디럭스(직선피트당 수량) | D11: 5 | E11: ₩22.50 | F11: ₩38.00 | G11: =IFERROR(비용[[#This Row],[예상]]-비용[[#This Row],[실제]], "") -> ₩15.50 | H11: =IFERROR(비용[[#This Row],[수량]]*비용[[#This Row],[예상]], "") -> ₩112.50 | I11: =IFERROR(비용[[#This Row],[수량]]*비용[[#This Row],[실제]], "") -> ₩190.00 | J11: =IFERROR(비용[[#This Row],[예상 ]]-비용[[#This Row],[실제 ]], "") -> (₩77.50)
B12: 수도꼭지 | C12: 수도꼭지, 욕조, 표준 | D12: 1 | E12: ₩90.00 | F12: ₩99.00 | G12: =IFERROR(비용[[#This Row],[예상]]-비용[[#This Row],[실제]], "") -> ₩9.00 | H12: =IFERROR(비용[[#This Row],[수량]]*비용[[#This Row],[예상]], "") -> ₩90.00 | I12: =IFERROR(비용[[#This Row],[수량]]*비용[[#This Row],[실제]], "") -> ₩99.00 | J12: =IFERROR(비용[[#This Row],[예상 ]]-비용[[#This Row],[실제 ]], "") -> (₩9.00)
B13: 수도꼭지 | C13: 수도꼭지, 샤워기, 단일 핸들, 표준 | D13: 1 | E13: ₩115.00 | F13: ₩132.00 | G13: =IFERROR(비용[[#This Row],[예상]]-비용[[#This Row],[실제]], "") -> ₩17.00 | H13: =IFERROR(비용[[#This Row],[수량]]*비용[[#This Row],[예상]], "") -> ₩115.00 | I13: =IFERROR(비용[[#This Row],[수량]]*비용[[#This Row],[실제]], "") -> ₩132.00 | J13: =IFERROR(비용[[#This Row],[예상 ]]-비용[[#This Row],[실제 ]], "") -> (₩17.00)
B14: 수도꼭지 | C14: 싱크대 수도꼭지, 표준 | D14: 1 | E14: ₩95.00 | F14: ₩108.00 | G14: =IFERROR(비용[[#This Row],[예상]]-비용[[#This Row],[실제]], "") -> ₩13.00 | H14: =IFERROR(비용[[#This Row],[수량]]*비용[[#This Row],[예상]], "") -> ₩95.00 | I14: =IFERROR(비용[[#This Row],[수량]]*비용[[#This Row],[실제]], "") -> ₩108.00 | J14: =IFERROR(비용[[#This Row],[예상 ]]-비용[[#This Row],[실제 ]], "") -> (₩13.00)
B15: 바닥 | C15: 세라믹 타일, 표준(입방피트당 수량) | D15: 35 | E15: ₩12.00 | F15: ₩19.00 | G15: =IFERROR(비용[[#This Row],[예상]]-비용[[#This Row],[실제]], "") -> ₩7.00 | H15: =IFERROR(비용[[#This Row],[수량]]*비용[[#This Row],[예상]], "") -> ₩420.00 | I15: =IFERROR(비용[[#This Row],[수량]]*비용[[#This Row],[실제]], "") -> ₩665.00 | J15: =IFERROR(비용[[#This Row],[예상 ]]-비용[[#This Row],[실제 ]], "") -> (₩245.00)
B16: 하드웨어 | C16: 수건 걸이, 표준 | D16: 2 | E16: ₩15.00 | F16: ₩22.00 | G16: =IFERROR(비용[[#This Row],[예상]]-비용[[#This Row],[실제]], "") -> ₩7.00 | H16: =IFERROR(비용[[#This Row],[수량]]*비용[[#This Row],[예상]], "") -> ₩30.00 | I16: =IFERROR(비용[[#This Row],[수량]]*비용[[#This Row],[실제]], "") -> ₩44.00 | J16: =IFERROR(비용[[#This Row],[예상 ]]-비용[[#This Row],[실제 ]], "") -> (₩14.00)
B17: 하드웨어 | C17: 휴지 걸이 | D17: 1 | E17: ₩10.00 | F17: ₩21.00 | G17: =IFERROR(비용[[#This Row],[예상]]-비용[[#This Row],[실제]], "") -> ₩11.00 | H17: =IFERROR(비용[[#This Row],[수량]]*비용[[#This Row],[예상]], "") -> ₩10.00 | I17: =IFERROR(비용[[#This Row],[수량]]*비용[[#This Row],[실제]], "") -> ₩21.00 | J17: =IFERROR(비용[[#This Row],[예상 ]]-비용[[#This Row],[실제 ]], "") -> (₩11.00)
B18: 조명 | C18: 매입형 조명, 표준 | D18: 4 | E18: ₩25.00 | F18: ₩30.00 | G18: =IFERROR(비용[[#This Row],[예상]]-비용[[#This Row],[실제]], "") -> ₩5.00 | H18: =IFERROR(비용[[#This Row],[수량]]*비용[[#This Row],[예상]], "") -> ₩100.00 | I18: =IFERROR(비용[[#This Row],[수량]]*비용[[#This Row],[실제]], "") -> ₩120.00 | J18: =IFERROR(비용[[#This Row],[예상 ]]-비용[[#This Row],[실제 ]], "") -> (₩20.00)
B19: 싱크대 | C19: 화장실, 표준 | D19: 2 | E19: ₩60.00 | F19: ₩72.00 | G19: =IFERROR(비용[[#This Row],[예상]]-비용[[#This Row],[실제]], "") -> ₩12.00 | H19: =IFERROR(비용[[#This Row],[수량]]*비용[[#This Row],[예상]], "") -> ₩120.00 | I19: =IFERROR(비용[[#This Row],[수량]]*비용[[#This Row],[실제]], "") -> ₩144.00 | J19: =IFERROR(비용[[#This Row],[예상 ]]-비용[[#This Row],[실제 ]], "") -> (₩24.00)
B20: 기타 | D20: 1 | E20: ₩20.00 | F20: ₩25.00 | G20: =IFERROR(비용[[#This Row],[예상]]-비용[[#This Row],[실제]], "") -> ₩5.00 | H20: =IFERROR(비용[[#This Row],[수량]]*비용[[#This Row],[예상]], "") -> ₩20.00 | I20: =IFERROR(비용[[#This Row],[수량]]*비용[[#This Row],[실제]], "") -> ₩25.00 | J20: =IFERROR(비용[[#This Row],[예상 ]]-비용[[#This Row],[실제 ]], "") -> (₩5.00)
B21: 소계 | E21: =SUBTOTAL(109,비용[예상]) -> ₩1,464.50 | F21: =SUBTOTAL(109,비용[실제]) -> ₩1,627.00 | G21: =SUBTOTAL(109,비용[차액]) -> ₩162.50 | H21: =SUBTOTAL(109,비용[[예상 ]]) -> ₩2,212.50 | I21: =SUBTOTAL(109,비용[[실제 ]]) -> ₩2,713.00 | J21: =SUBTOTAL(109,비용[[차액 ]]) -> ₩500.50
B23: 예기치 않은 비용(30% 추가 예상) | E23: =IFERROR(비용[[#Totals],[예상]]*0.3, "") -> ₩439.35 | H23: =IFERROR(비용[[#Totals],[예상 ]]*0.3, "") -> ₩663.75
B24: 총 비용 | E24: =IFERROR(SUM(E21:E21), "") -> ₩1,464.50 | H24: =IFERROR(SUM(비용[[#Totals],[예상 ]],초과), "") -> ₩2,876.25
